[Event "Titled Tuesday Blitz March 15 Early 2022"]
[White "Baches Garcia, Guillermo"]
[Black "Hernandez Jimenez, Alexander Andres"]
[WhiteFideId "2209764"]
[BlackFideId "3900452"]
[WhiteElo "2430"]
[BlackElo "2082"]
[Result "1/2-1/2"]
[Round "04"]
[TimeControl "180+1"]
[Date "2022.03.15"]
[WhiteClock "0:00:12"]
[BlackClock "0:00:03"]

1. e4 {[%clk 0:03:00]}  c5 {[%clk 0:02:59]} 2. Nf3 {[%clk 0:03:01]}  d6 {[%clk 0:03:00]} 3. d4 {[%clk 0:03:01]}  cxd4 {[%clk 0:03:00]} 4. Qxd4 {[%clk 0:03:02]}  Nc6 {[%clk 0:02:58]} 5. Bb5 {[%clk 0:03:02]}  Bd7 {[%clk 0:02:59]} 6. Qd3 {[%clk 0:03:02]}  Nf6 {[%clk 0:02:58]} 7. c4 {[%clk 0:03:02]}  e6 {[%clk 0:02:57]} 8. Nc3 {[%clk 0:03:01]}  Be7 {[%clk 0:02:57]} 9. Bf4 {[%clk 0:02:59]}  a6 {[%clk 0:02:45]} 10. Ba4 {[%clk 0:02:59]}  Nb4 {[%clk 0:02:35]} 11. Bxd7+ {[%clk 0:02:57]}  Qxd7 {[%clk 0:02:34]} 12. Qe2 {[%clk 0:02:54]}  Rc8 {[%clk 0:02:30]} 13. O-O {[%clk 0:02:47]}  O-O {[%clk 0:02:30]} 14. Rac1 {[%clk 0:02:40]}  Qc7 {[%clk 0:02:19]} 15. b3 {[%clk 0:02:27]}  Rfd8 {[%clk 0:02:16]} 16. Rfd1 {[%clk 0:02:26]}  Nc6 {[%clk 0:02:15]} 17. Nd5 {[%clk 0:02:16]}  exd5 {[%clk 0:02:06]} 18. cxd5 {[%clk 0:02:16]}  Qd7 {[%clk 0:01:51]} 19. dxc6 {[%clk 0:02:15]}  Rxc6 {[%clk 0:01:47]} 20. Nd4 {[%clk 0:02:10]}  Rxc1 {[%clk 0:01:46]} 21. Bxc1 {[%clk 0:02:00]}  Bf8 {[%clk 0:01:35]} 22. Bb2 {[%clk 0:01:44]}  Re8 {[%clk 0:01:33]} 23. f3 {[%clk 0:01:38]}  d5 {[%clk 0:01:28]} 24. e5 {[%clk 0:01:31]}  Bc5 {[%clk 0:01:03]} 25. Kh1 {[%clk 0:01:30]}  Nh5 {[%clk 0:01:02]} 26. Qe3 {[%clk 0:01:12]}  g6 {[%clk 0:00:53]} 27. Re1 {[%clk 0:01:10]}  Ng7 {[%clk 0:00:51]} 28. Qd3 {[%clk 0:01:03]}  Ne6 {[%clk 0:00:47]} 29. Ne2 {[%clk 0:00:55]}  d4 {[%clk 0:00:40]} 30. f4 {[%clk 0:00:55]}  Qd5 {[%clk 0:00:35]} 31. Rf1 {[%clk 0:00:51]}  Ng7 {[%clk 0:00:28]} 32. Ng3 {[%clk 0:00:48]}  Rd8 {[%clk 0:00:22]} 33. Ne4 {[%clk 0:00:47]}  Ne8 {[%clk 0:00:13]} 34. h3 {[%clk 0:00:39]}  Be7 {[%clk 0:00:12]} 35. Rd1 {[%clk 0:00:36]}  f5 {[%clk 0:00:12]} 36. Nd2 {[%clk 0:00:27]}  Bc5 {[%clk 0:00:11]} 37. Nf3 {[%clk 0:00:27]}  Nc7 {[%clk 0:00:10]} 38. Ng5 {[%clk 0:00:26]}  h6 {[%clk 0:00:08]} 39. Nf3 {[%clk 0:00:26]}  Ne6 {[%clk 0:00:08]} 40. Qd2 {[%clk 0:00:24]}  Qe4 {[%clk 0:00:06]} 41. Bc1 {[%clk 0:00:21]}  d3 {[%clk 0:00:05]} 42. Re1 {[%clk 0:00:21]}  Qd5 {[%clk 0:00:05]} 43. Bb2 {[%clk 0:00:20]}  Bd4 {[%clk 0:00:04]} 44. Nxd4 {[%clk 0:00:19]}  Nxd4 {[%clk 0:00:04]} 45. Bxd4 {[%clk 0:00:18]}  Qxd4 {[%clk 0:00:04]} 46. e6 {[%clk 0:00:18]}  Re8 {[%clk 0:00:02]} 47. Re5 {[%clk 0:00:17]}  Qd6 {[%clk 0:00:01]} 48. e7 {[%clk 0:00:16]}  Rxe7 {[%clk 0:00:01]} 49. Rxe7 {[%clk 0:00:16]}  Qxe7 {[%clk 0:00:02]} 50. Qxd3 {[%clk 0:00:16]}  Qe1+ {[%clk 0:00:02]} 51. Kh2 {[%clk 0:00:17]}  Qe4 {[%clk 0:00:02]} 52. Qd6 {[%clk 0:00:14]}  Kg7 {[%clk 0:00:02]} 53. b4 {[%clk 0:00:14]}  b5 {[%clk 0:00:02]} 54. a3 {[%clk 0:00:14]}  h5 {[%clk 0:00:02]} 55. Qc7+ {[%clk 0:00:13]}  Kh6 {[%clk 0:00:03]} 56. Qd6 {[%clk 0:00:11]}  h4 {[%clk 0:00:03]} 57. Qf8+ {[%clk 0:00:11]}  Kh7 {[%clk 0:00:03]} 58. Qf7+ {[%clk 0:00:11]}  Kh6 {[%clk 0:00:03]} 59. Qf8+ {[%clk 0:00:11]}  Kh7 {[%clk 0:00:04]} 60. Qf7+ {[%clk 0:00:12]}  Kh6 {[%clk 0:00:04]} 61. Qc7 {[%clk 0:00:11]}  Qe3 {[%clk 0:00:03]} 62. Qb8 {[%clk 0:00:11]}  Qg3+ {[%clk 0:00:03]} 63. Kh1 {[%clk 0:00:11]}  Qe1+ {[%clk 0:00:03]} 64. Kh2 {[%clk 0:00:11]}  Qg3+ {[%clk 0:00:03]} 65. Kh1 {[%clk 0:00:12]}  Qe1+ {[%clk 0:00:03]} 66. Kh2 {[%clk 0:00:12]}  Qg3+ {[%clk 0:00:03]} 1/2-1/2


[Site "https://www.chess.com"]

[Event "Titled Tuesday Blitz March 15 Early 2022"]
[White "Budrewicz, Krzysztof"]
[Black "Shailendra, K Bajpai"]
[WhiteFideId "1127950"]
[BlackFideId "5014670"]
[WhiteElo "2248"]
[BlackElo "2242"]
[Result "1-0"]
[Round "04"]
[TimeControl "180+1"]
[Date "2022.03.15"]
[WhiteClock "0:02:33"]
[BlackClock "0:00:02"]

1. d4 {[%clk 0:03:00]}  Nf6 {[%clk 0:02:54]} 2. c4 {[%clk 0:03:01]}  e6 {[%clk 0:02:53]} 3. Nf3 {[%clk 0:03:01]}  Be7 {[%clk 0:02:53]} 4. d5 {[%clk 0:02:56]}  O-O {[%clk 0:02:52]} 5. Nc3 {[%clk 0:02:56]}  b6 {[%clk 0:02:50]} 6. a3 {[%clk 0:02:55]}  Bb7 {[%clk 0:02:46]} 7. e4 {[%clk 0:02:56]}  exd5 {[%clk 0:02:38]} 8. cxd5 {[%clk 0:02:55]}  Re8 {[%clk 0:02:32]} 9. Bd3 {[%clk 0:02:49]}  Na6 {[%clk 0:02:21]} 10. O-O {[%clk 0:02:46]}  Bd6 {[%clk 0:01:26]} 11. Bg5 {[%clk 0:02:42]}  h6 {[%clk 0:01:26]} 12. Bh4 {[%clk 0:02:42]}  Nc5 {[%clk 0:01:25]} 13. Bc2 {[%clk 0:02:42]}  g5 {[%clk 0:01:20]} 14. Nxg5 {[%clk 0:02:41]}  hxg5 {[%clk 0:01:13]} 15. Bxg5 {[%clk 0:02:41]}  Re5 {[%clk 0:01:14]} 16. f4 {[%clk 0:02:38]}  Rxg5 {[%clk 0:01:07]} 17. fxg5 {[%clk 0:02:38]}  Nh7 {[%clk 0:01:08]} 18. e5 {[%clk 0:02:36]}  Bxe5 {[%clk 0:00:42]} 19. Bxh7+ {[%clk 0:02:36]}  Kxh7 {[%clk 0:00:36]} 20. Qh5+ {[%clk 0:02:36]}  Kg8 {[%clk 0:00:29]} 21. Qxf7+ {[%clk 0:02:34]}  Kh8 {[%clk 0:00:29]} 22. Qh5+ {[%clk 0:02:34]}  Kg8 {[%clk 0:00:27]} 23. g6 {[%clk 0:02:34]}  Qe7 {[%clk 0:00:07]} 24. Rf7 {[%clk 0:02:34]}  Bd4+ {[%clk 0:00:05]} 25. Kh1 {[%clk 0:02:33]}  Qxf7 {[%clk 0:00:01]} 26. gxf7+ {[%clk 0:02:33]}  Kf8 {[%clk 0:00:02]} 1-0


[Site "https://www.chess.com"]

[Event "Titled Tuesday Blitz March 15 Early 2022"]
[White "Cavanah, Troy"]
[Black "Garagulya, Konstantin"]
[WhiteFideId "30949670"]
[BlackFideId "4128931"]
[WhiteElo "1878"]
[BlackElo "2329"]
[Result "0-1"]
[Round "04"]
[TimeControl "180+1"]
[Date "2022.03.15"]
[WhiteClock "0:00:48"]
[BlackClock "0:01:10"]

1. e4 {[%clk 0:03:00]}  c5 {[%clk 0:02:57]} 2. Nf3 {[%clk 0:03:00]}  a6 {[%clk 0:02:52]} 3. d4 {[%clk 0:03:00]}  cxd4 {[%clk 0:02:53]} 4. Nxd4 {[%clk 0:03:01]}  Nf6 {[%clk 0:02:53]} 5. e5 {[%clk 0:02:56]}  Qa5+ {[%clk 0:02:49]} 6. Nc3 {[%clk 0:02:54]}  Qxe5+ {[%clk 0:02:50]} 7. Be2 {[%clk 0:02:54]}  Nc6 {[%clk 0:02:48]} 8. Be3 {[%clk 0:02:46]}  d5 {[%clk 0:02:42]} 9. O-O {[%clk 0:02:42]}  e6 {[%clk 0:02:41]} 10. Qd2 {[%clk 0:02:34]}  Qc7 {[%clk 0:02:10]} 11. Bf4 {[%clk 0:02:23]}  e5 {[%clk 0:01:48]} 12. Nxc6 {[%clk 0:02:08]}  bxc6 {[%clk 0:01:45]} 13. Bg3 {[%clk 0:02:02]}  Bd6 {[%clk 0:01:45]} 14. Rfe1 {[%clk 0:01:58]}  O-O {[%clk 0:01:45]} 15. Bd3 {[%clk 0:01:52]}  Re8 {[%clk 0:01:39]} 16. a4 {[%clk 0:01:48]}  a5 {[%clk 0:01:37]} 17. Rad1 {[%clk 0:01:44]}  Ba6 {[%clk 0:01:37]} 18. Bxa6 {[%clk 0:01:37]}  Rxa6 {[%clk 0:01:38]} 19. Bh4 {[%clk 0:01:14]}  Nd7 {[%clk 0:01:29]} 20. Ne4 {[%clk 0:01:11]}  Bf8 {[%clk 0:01:20]} 21. Ng5 {[%clk 0:01:06]}  h6 {[%clk 0:01:14]} 22. Qd3 {[%clk 0:00:59]}  hxg5 {[%clk 0:01:12]} 23. Qxa6 {[%clk 0:00:56]}  gxh4 {[%clk 0:01:13]} 24. c4 {[%clk 0:00:48]}  Nc5 {[%clk 0:01:10]} 0-1


[Site "https://www.chess.com"]

[Event "Titled Tuesday Blitz March 15 Early 2022"]
[White "Chen, Qi b"]
[Black "Brunner, Nicolas"]
[WhiteFideId "8614733"]
[BlackFideId "620246"]
[WhiteElo "2432"]
[BlackElo "2372"]
[Result "1-0"]
[Round "04"]
[TimeControl "180+1"]
[Date "2022.03.15"]
[WhiteClock "0:00:02"]
[BlackClock "0:00:04"]

1. e4 {[%clk 0:02:58]}  e5 {[%clk 0:02:51]} 2. Nf3 {[%clk 0:02:58]}  Nc6 {[%clk 0:02:51]} 3. Bb5 {[%clk 0:02:58]}  a6 {[%clk 0:02:50]} 4. Ba4 {[%clk 0:02:58]}  Nf6 {[%clk 0:02:49]} 5. O-O {[%clk 0:02:58]}  Be7 {[%clk 0:02:48]} 6. Re1 {[%clk 0:02:57]}  b5 {[%clk 0:02:48]} 7. Bb3 {[%clk 0:02:58]}  d6 {[%clk 0:02:48]} 8. a4 {[%clk 0:02:58]}  Bg4 {[%clk 0:02:42]} 9. c3 {[%clk 0:02:58]}  O-O {[%clk 0:02:40]} 10. h3 {[%clk 0:02:58]}  Bh5 {[%clk 0:02:39]} 11. d3 {[%clk 0:02:58]}  Na5 {[%clk 0:02:37]} 12. Bc2 {[%clk 0:02:58]}  c5 {[%clk 0:02:36]} 13. Nbd2 {[%clk 0:02:58]}  Nc6 {[%clk 0:02:34]} 14. Nf1 {[%clk 0:02:57]}  d5 {[%clk 0:02:33]} 15. Ng3 {[%clk 0:02:21]}  Bg6 {[%clk 0:02:32]} 16. axb5 {[%clk 0:02:14]}  axb5 {[%clk 0:02:31]} 17. Rxa8 {[%clk 0:02:13]}  Qxa8 {[%clk 0:02:31]} 18. exd5 {[%clk 0:02:14]}  Nxd5 {[%clk 0:02:32]} 19. Nxe5 {[%clk 0:02:03]}  Nxe5 {[%clk 0:02:32]} 20. Rxe5 {[%clk 0:02:04]}  Bf6 {[%clk 0:02:32]} 21. Re1 {[%clk 0:02:01]}  b4 {[%clk 0:02:31]} 22. Ne4 {[%clk 0:01:31]}  bxc3 {[%clk 0:02:30]} 23. Nxf6+ {[%clk 0:01:29]}  gxf6 {[%clk 0:02:29]} 24. bxc3 {[%clk 0:01:29]}  Nxc3 {[%clk 0:02:27]} 25. Qd2 {[%clk 0:01:25]}  Nd5 {[%clk 0:02:06]} 26. Bb3 {[%clk 0:01:04]}  Nb4 {[%clk 0:02:03]} 27. Bc4 {[%clk 0:00:19]}  Rd8 {[%clk 0:01:16]} 28. Bb2 {[%clk 0:00:20]}  Qc6 {[%clk 0:00:51]} 29. Qf4 {[%clk 0:00:20]}  Kg7 {[%clk 0:00:22]} 30. Re3 {[%clk 0:00:08]}  Nxd3 {[%clk 0:00:20]} 31. Bxd3 {[%clk 0:00:06]}  Rxd3 {[%clk 0:00:20]} 32. Rxd3 {[%clk 0:00:06]}  Bxd3 {[%clk 0:00:20]} 33. h4 {[%clk 0:00:07]}  Bg6 {[%clk 0:00:18]} 34. g4 {[%clk 0:00:05]}  h6 {[%clk 0:00:14]} 35. g5 {[%clk 0:00:05]}  hxg5 {[%clk 0:00:14]} 36. hxg5 {[%clk 0:00:06]}  Qe6 {[%clk 0:00:10]} 37. Bxf6+ {[%clk 0:00:05]}  Kf8 {[%clk 0:00:07]} 38. Qb8+ {[%clk 0:00:04]}  Qe8 {[%clk 0:00:07]} 39. Bg7+ {[%clk 0:00:02]}  Ke7 {[%clk 0:00:08]} 40. Qc7+ {[%clk 0:00:02]}  Qd7 {[%clk 0:00:07]} 41. Bf6+ {[%clk 0:00:02]}  Ke8 {[%clk 0:00:04]} 42. Qb8+ {[%clk 0:00:02]} 1-0


[Site "https://www.chess.com"]

[Event "Titled Tuesday Blitz March 15 Early 2022"]
[White "Christensen, Thomas"]
[Black "Flis, Pawel"]
[WhiteFideId "1403532"]
[BlackFideId "1112864"]
[WhiteElo "2255"]
[BlackElo "1735"]
[Result "1-0"]
[Round "04"]
[TimeControl "180+1"]
[Date "2022.03.15"]
[WhiteClock "0:00:09"]
[BlackClock "0:00:01"]

1. d4 {[%clk 0:03:00]}  Nf6 {[%clk 0:02:59]} 2. Nc3 {[%clk 0:03:00]}  d5 {[%clk 0:02:55]} 3. e4 {[%clk 0:03:00]}  dxe4 {[%clk 0:02:54]} 4. f3 {[%clk 0:03:00]}  c5 {[%clk 0:02:45]} 5. d5 {[%clk 0:02:59]}  exf3 {[%clk 0:02:31]} 6. Nxf3 {[%clk 0:02:59]}  e6 {[%clk 0:02:31]} 7. Bb5+ {[%clk 0:02:59]}  Bd7 {[%clk 0:02:17]} 8. dxe6 {[%clk 0:02:59]}  fxe6 {[%clk 0:02:13]} 9. O-O {[%clk 0:02:54]}  Nc6 {[%clk 0:02:10]} 10. Bg5 {[%clk 0:02:38]}  Be7 {[%clk 0:02:09]} 11. Qe1 {[%clk 0:02:33]}  Nd4 {[%clk 0:01:53]} 12. Bxd7+ {[%clk 0:02:30]}  Qxd7 {[%clk 0:01:54]} 13. Ne5 {[%clk 0:02:26]}  Qc8 {[%clk 0:01:45]} 14. Qh4 {[%clk 0:02:11]}  Qc7 {[%clk 0:01:09]} 15. Rae1 {[%clk 0:02:05]}  O-O-O {[%clk 0:01:05]} 16. Nf7 {[%clk 0:02:03]}  Nf5 {[%clk 0:00:58]} 17. Qa4 {[%clk 0:01:53]}  a6 {[%clk 0:00:34]} 18. Nxh8 {[%clk 0:01:48]}  Rxh8 {[%clk 0:00:33]} 19. Rxe6 {[%clk 0:01:45]}  Nd4 {[%clk 0:00:27]} 20. Ree1 {[%clk 0:01:21]}  Bd6 {[%clk 0:00:18]} 21. h3 {[%clk 0:00:27]}  Bh2+ {[%clk 0:00:16]} 22. Kh1 {[%clk 0:00:28]}  Bg3 {[%clk 0:00:16]} 23. Bxf6 {[%clk 0:00:23]}  gxf6 {[%clk 0:00:11]} 24. Nd5 {[%clk 0:00:21]}  Qd6 {[%clk 0:00:09]} 25. Ne7+ {[%clk 0:00:20]}  Kb8 {[%clk 0:00:05]} 26. Re3 {[%clk 0:00:13]}  Be5 {[%clk 0:00:05]} 27. Nf5 {[%clk 0:00:12]}  Qc7 {[%clk 0:00:04]} 28. Nxd4 {[%clk 0:00:11]}  Bxd4 {[%clk 0:00:04]} 29. Re8+ {[%clk 0:00:11]}  Rxe8 {[%clk 0:00:03]} 30. Qxe8+ {[%clk 0:00:12]}  Ka7 {[%clk 0:00:03]} 31. c3 {[%clk 0:00:10]}  Be5 {[%clk 0:00:02]} 32. Qh5 {[%clk 0:00:10]}  Qb6 {[%clk 0:00:01]} 33. Qe2 {[%clk 0:00:09]} 1-0


[Site "https://www.chess.com"]

[Event "Titled Tuesday Blitz March 15 Early 2022"]
[White "Coto Mederos, Michel"]
[Black "Wong, Yinn Long"]
[WhiteFideId "3508528"]
[BlackFideId "5707684"]
[WhiteElo "2427"]
[BlackElo "2055"]
[Result "1-0"]
[Round "04"]
[TimeControl "180+1"]
[Date "2022.03.15"]
[WhiteClock "0:00:06"]
[BlackClock "0:00:02"]

1. d4 {[%clk 0:02:55]}  Nf6 {[%clk 0:02:57]} 2. Bg5 {[%clk 0:02:55]}  g6 {[%clk 0:02:56]} 3. Bxf6 {[%clk 0:02:50]}  exf6 {[%clk 0:02:57]} 4. e3 {[%clk 0:02:48]}  Bg7 {[%clk 0:02:57]} 5. Bd3 {[%clk 0:02:45]}  d6 {[%clk 0:02:56]} 6. Ne2 {[%clk 0:02:44]}  O-O {[%clk 0:02:56]} 7. c4 {[%clk 0:02:43]}  f5 {[%clk 0:02:56]} 8. Nbc3 {[%clk 0:02:43]}  Nd7 {[%clk 0:02:55]} 9. Nf4 {[%clk 0:02:39]}  Nf6 {[%clk 0:02:54]} 10. O-O {[%clk 0:02:36]}  b6 {[%clk 0:02:47]} 11. Rc1 {[%clk 0:02:28]}  Bb7 {[%clk 0:02:47]} 12. Re1 {[%clk 0:02:25]}  Re8 {[%clk 0:02:47]} 13. h3 {[%clk 0:02:13]}  Qd7 {[%clk 0:02:42]} 14. Be2 {[%clk 0:02:12]}  Bh6 {[%clk 0:02:35]} 15. Bf3 {[%clk 0:02:02]}  Ne4 {[%clk 0:02:24]} 16. Nfd5 {[%clk 0:01:44]}  Bg7 {[%clk 0:02:17]} 17. Qc2 {[%clk 0:01:27]}  Ng5 {[%clk 0:02:07]} 18. Nf6+ {[%clk 0:01:10]}  Bxf6 {[%clk 0:02:07]} 19. Bxb7 {[%clk 0:01:11]}  Rab8 {[%clk 0:02:08]} 20. Ba6 {[%clk 0:01:09]}  c6 {[%clk 0:02:02]} 21. d5 {[%clk 0:01:05]}  Bxc3 {[%clk 0:01:36]} 22. Qxc3 {[%clk 0:00:58]}  Ne4 {[%clk 0:01:32]} 23. Qa3 {[%clk 0:00:55]}  Re7 {[%clk 0:01:16]} 24. dxc6 {[%clk 0:00:47]}  Qxc6 {[%clk 0:01:17]} 25. Red1 {[%clk 0:00:41]}  Qc7 {[%clk 0:01:04]} 26. Rd4 {[%clk 0:00:30]}  Re5 {[%clk 0:01:03]} 27. b4 {[%clk 0:00:14]}  Rbe8 {[%clk 0:00:41]} 28. Rcd1 {[%clk 0:00:14]}  R5e7 {[%clk 0:00:24]} 29. Bb5 {[%clk 0:00:13]}  Rd8 {[%clk 0:00:24]} 30. Ba4 {[%clk 0:00:14]}  Qc8 {[%clk 0:00:15]} 31. Bc2 {[%clk 0:00:14]}  Qc7 {[%clk 0:00:12]} 32. Bxe4 {[%clk 0:00:12]}  Rxe4 {[%clk 0:00:10]} 33. Rxe4 {[%clk 0:00:12]}  fxe4 {[%clk 0:00:11]} 34. Rd4 {[%clk 0:00:09]}  Qe7 {[%clk 0:00:11]} 35. Qb3 {[%clk 0:00:06]}  Qe5 {[%clk 0:00:08]} 36. Qc2 {[%clk 0:00:06]}  Re8 {[%clk 0:00:06]} 37. Qd2 {[%clk 0:00:06]}  Re6 {[%clk 0:00:07]} 38. Qd1 {[%clk 0:00:06]}  h5 {[%clk 0:00:06]} 39. Rd5 {[%clk 0:00:06]}  Qc3 {[%clk 0:00:06]} 40. Rxd6 {[%clk 0:00:06]}  Rxd6 {[%clk 0:00:04]} 41. Qxd6 {[%clk 0:00:07]}  Qc1+ {[%clk 0:00:03]} 42. Kh2 {[%clk 0:00:07]}  Qxc4 {[%clk 0:00:04]} 43. Qb8+ {[%clk 0:00:07]}  Kg7 {[%clk 0:00:04]} 44. Qxa7 {[%clk 0:00:08]}  Qxb4 {[%clk 0:00:05]} 45. Qb7 {[%clk 0:00:07]}  h4 {[%clk 0:00:03]} 46. Qd5 {[%clk 0:00:05]}  f5 {[%clk 0:00:02]} 47. Qd7+ {[%clk 0:00:05]}  Kh6 {[%clk 0:00:02]} 48. Qd8 {[%clk 0:00:06]}  g5 {[%clk 0:00:02]} 49. Qf6+ {[%clk 0:00:06]}  Kh5 {[%clk 0:00:03]} 50. Qxf5 {[%clk 0:00:05]}  Qd6+ {[%clk 0:00:02]} 51. g3 {[%clk 0:00:05]}  hxg3+ {[%clk 0:00:02]} 52. fxg3 {[%clk 0:00:06]}  Qd2+ {[%clk 0:00:03]} 53. Kh1 {[%clk 0:00:07]}  Qe1+ {[%clk 0:00:03]} 54. Kg2 {[%clk 0:00:06]}  Qxe3 {[%clk 0:00:02]} 55. Qh7# {[%clk 0:00:06]} 1-0


[Site "https://www.chess.com"]

[Event "Titled Tuesday Blitz March 15 Early 2022"]
[White "Devaev, Alexander"]
[Black "Secer, Ata"]
[WhiteFideId "4169395"]
[BlackFideId "6303293"]
[WhiteElo "2185"]
[BlackElo "2282"]
[Result "0-1"]
[Round "04"]
[TimeControl "180+1"]
[Date "2022.03.15"]
[WhiteClock "0:00:09"]
[BlackClock "0:00:13"]

1. Nf3 {[%clk 0:02:23]}  d5 {[%clk 0:02:58]} 2. c4 {[%clk 0:02:04]}  c6 {[%clk 0:02:58]} 3. e3 {[%clk 0:02:02]}  Nf6 {[%clk 0:02:57]} 4. b3 {[%clk 0:02:02]}  Bg4 {[%clk 0:02:57]} 5. Bb2 {[%clk 0:02:02]}  e6 {[%clk 0:02:57]} 6. d4 {[%clk 0:02:03]}  Nbd7 {[%clk 0:02:57]} 7. Nbd2 {[%clk 0:02:03]}  Bd6 {[%clk 0:02:57]} 8. Bd3 {[%clk 0:02:04]}  Qe7 {[%clk 0:02:57]} 9. Qc2 {[%clk 0:02:04]}  Ba3 {[%clk 0:02:57]} 10. O-O {[%clk 0:01:58]}  Bxb2 {[%clk 0:02:52]} 11. Qxb2 {[%clk 0:01:58]}  O-O {[%clk 0:02:53]} 12. Rac1 {[%clk 0:01:55]}  Bh5 {[%clk 0:02:52]} 13. Rfe1 {[%clk 0:01:53]}  Bg6 {[%clk 0:02:52]} 14. Bxg6 {[%clk 0:01:49]}  hxg6 {[%clk 0:02:53]} 15. h3 {[%clk 0:01:47]}  a6 {[%clk 0:02:53]} 16. Ne5 {[%clk 0:01:30]}  Nxe5 {[%clk 0:02:40]} 17. dxe5 {[%clk 0:01:30]}  Nd7 {[%clk 0:02:41]} 18. e4 {[%clk 0:01:29]}  Nb6 {[%clk 0:01:54]} 19. cxd5 {[%clk 0:00:57]}  exd5 {[%clk 0:01:55]} 20. Qd4 {[%clk 0:00:52]}  Qd8 {[%clk 0:01:52]} 21. exd5 {[%clk 0:00:47]}  Nxd5 {[%clk 0:01:53]} 22. Nc4 {[%clk 0:00:34]}  Qg5 {[%clk 0:01:26]} 23. Kh2 {[%clk 0:00:25]}  Rfe8 {[%clk 0:01:18]} 24. g3 {[%clk 0:00:24]}  Re6 {[%clk 0:00:50]} 25. f4 {[%clk 0:00:20]}  Qe7 {[%clk 0:00:49]} 26. Rcd1 {[%clk 0:00:17]}  Rd8 {[%clk 0:00:48]} 27. Ne3 {[%clk 0:00:14]}  Qe8 {[%clk 0:00:40]} 28. Rd3 {[%clk 0:00:13]}  Re7 {[%clk 0:00:39]} 29. Nc4 {[%clk 0:00:12]}  Red7 {[%clk 0:00:38]} 30. Red1 {[%clk 0:00:10]}  Nxf4 {[%clk 0:00:20]} 31. Qxd7 {[%clk 0:00:09]}  Rxd7 {[%clk 0:00:20]} 32. Rxd7 {[%clk 0:00:09]}  Ne6 {[%clk 0:00:21]} 33. Rxb7 {[%clk 0:00:08]}  Ng5 {[%clk 0:00:15]} 34. Rbd7 {[%clk 0:00:07]}  Qe6 {[%clk 0:00:15]} 35. Rd8+ {[%clk 0:00:07]}  Kh7 {[%clk 0:00:15]} 36. Re1 {[%clk 0:00:07]}  Qxh3+ {[%clk 0:00:14]} 37. Kg1 {[%clk 0:00:08]}  Qxg3+ {[%clk 0:00:15]} 38. Kf1 {[%clk 0:00:08]}  Qf3+ {[%clk 0:00:15]} 39. Kg1 {[%clk 0:00:08]}  Nh3+ {[%clk 0:00:15]} 40. Kh2 {[%clk 0:00:09]}  Nf4 {[%clk 0:00:14]} 41. Rg1 {[%clk 0:00:09]}  Qf2+ {[%clk 0:00:13]} 42. Kh1 {[%clk 0:00:09]}  Qh4# {[%clk 0:00:13]} 0-1


[Site "https://www.chess.com"]

[Event "Titled Tuesday Blitz March 15 Early 2022"]
[White "Dreev, Aleksey"]
[Black "Bortnyk, Olexandr"]
[WhiteFideId "4100107"]
[BlackFideId "14120828"]
[WhiteElo "2625"]
[BlackElo "2723"]
[Result "0-1"]
[Round "04"]
[TimeControl "180+1"]
[Date "2022.03.15"]
[WhiteClock "0:00:03"]
[BlackClock "0:00:06"]

1. d4 {[%clk 0:03:00]}  d6 {[%clk 0:03:00]} 2. c4 {[%clk 0:02:58]}  e5 {[%clk 0:03:00]} 3. Nc3 {[%clk 0:02:58]}  Nc6 {[%clk 0:02:59]} 4. Nf3 {[%clk 0:02:56]}  Bg4 {[%clk 0:02:49]} 5. d5 {[%clk 0:02:38]}  Nb8 {[%clk 0:02:37]} 6. Qb3 {[%clk 0:02:35]}  b6 {[%clk 0:02:36]} 7. h3 {[%clk 0:02:30]}  Bxf3 {[%clk 0:02:34]} 8. exf3 {[%clk 0:02:29]}  Be7 {[%clk 0:02:33]} 9. f4 {[%clk 0:02:14]}  Nf6 {[%clk 0:02:21]} 10. g3 {[%clk 0:01:59]}  Nbd7 {[%clk 0:02:18]} 11. Bg2 {[%clk 0:01:59]}  O-O {[%clk 0:02:19]} 12. O-O {[%clk 0:01:58]}  Nc5 {[%clk 0:02:19]} 13. Qc2 {[%clk 0:01:58]}  a5 {[%clk 0:02:16]} 14. Re1 {[%clk 0:01:57]}  Nfd7 {[%clk 0:02:15]} 15. b3 {[%clk 0:01:54]}  exf4 {[%clk 0:02:13]} 16. Bxf4 {[%clk 0:01:54]}  Bg5 {[%clk 0:02:13]} 17. Bxg5 {[%clk 0:01:49]}  Qxg5 {[%clk 0:02:14]} 18. Nb5 {[%clk 0:01:49]}  Rac8 {[%clk 0:02:12]} 19. a3 {[%clk 0:01:39]}  Qf6 {[%clk 0:01:56]} 20. b4 {[%clk 0:01:37]}  Na6 {[%clk 0:01:56]} 21. Qd2 {[%clk 0:01:34]}  Ne5 {[%clk 0:01:56]} 22. Rac1 {[%clk 0:01:29]}  axb4 {[%clk 0:01:23]} 23. axb4 {[%clk 0:01:29]}  Rfe8 {[%clk 0:01:22]} 24. f4 {[%clk 0:01:26]}  Nd7 {[%clk 0:01:16]} 25. Ra1 {[%clk 0:01:16]}  Rxe1+ {[%clk 0:01:13]} 26. Rxe1 {[%clk 0:01:03]}  g6 {[%clk 0:01:13]} 27. Bf3 {[%clk 0:00:53]}  h5 {[%clk 0:01:07]} 28. Kg2 {[%clk 0:00:49]}  Rd8 {[%clk 0:00:43]} 29. Rb1 {[%clk 0:00:46]}  Re8 {[%clk 0:00:41]} 30. h4 {[%clk 0:00:35]}  Qf5 {[%clk 0:00:40]} 31. Ra1 {[%clk 0:00:29]}  Nxb4 {[%clk 0:00:12]} 32. Qxb4 {[%clk 0:00:20]}  Qc2+ {[%clk 0:00:12]} 33. Kg1 {[%clk 0:00:20]}  Re3 {[%clk 0:00:13]} 34. Rf1 {[%clk 0:00:19]}  Nc5 {[%clk 0:00:12]} 35. Nd4 {[%clk 0:00:16]}  Qd3 {[%clk 0:00:12]} 36. Qb2 {[%clk 0:00:13]}  Qxc4 {[%clk 0:00:08]} 37. f5 {[%clk 0:00:11]}  Nd3 {[%clk 0:00:07]} 38. Qa1 {[%clk 0:00:11]}  Ne5 {[%clk 0:00:06]} 39. fxg6 {[%clk 0:00:11]}  fxg6 {[%clk 0:00:05]} 40. Bg2 {[%clk 0:00:12]}  Rxg3 {[%clk 0:00:04]} 41. Ne6 {[%clk 0:00:07]}  Rxg2+ {[%clk 0:00:04]} 42. Kxg2 {[%clk 0:00:08]}  Qxd5+ {[%clk 0:00:04]} 43. Kg1 {[%clk 0:00:06]}  Qxe6 {[%clk 0:00:05]} 44. Qa8+ {[%clk 0:00:05]}  Kh7 {[%clk 0:00:03]} 45. Qd8 {[%clk 0:00:05]}  Qg4+ {[%clk 0:00:02]} 46. Kh2 {[%clk 0:00:05]}  Nf3+ {[%clk 0:00:02]} 47. Rxf3 {[%clk 0:00:05]}  Qxf3 {[%clk 0:00:03]} 48. Qxc7+ {[%clk 0:00:05]}  Kh6 {[%clk 0:00:03]} 49. Qxd6 {[%clk 0:00:05]}  Qf2+ {[%clk 0:00:03]} 50. Kh3 {[%clk 0:00:05]}  Qe3+ {[%clk 0:00:04]} 51. Kg2 {[%clk 0:00:05]}  Qe2+ {[%clk 0:00:04]} 52. Kg3 {[%clk 0:00:06]}  Qg4+ {[%clk 0:00:04]} 53. Kf2 {[%clk 0:00:06]}  Qxh4+ {[%clk 0:00:05]} 54. Kf3 {[%clk 0:00:06]}  Qg4+ {[%clk 0:00:05]} 55. Ke3 {[%clk 0:00:05]}  Qg5+ {[%clk 0:00:06]} 56. Kf3 {[%clk 0:00:04]}  Qf5+ {[%clk 0:00:06]} 57. Ke3 {[%clk 0:00:03]}  Qc5+ {[%clk 0:00:06]} 0-1


[Site "https://www.chess.com"]